fUSD/lending_fUSD_20240906
["ID","MTS","AMOUNT","RATE_DAILY","PERIOD"]
[337407807,1725648410903,-193.0,0.0003171,30]
[337407809,1725648410961,-200.0,0.0003171,30]
[337407811,1725648411024,-187.0,0.0003171,30]
[337407813,1725648411085,-1000.0,0.0003171,30]
[337407815,1725648411142,-1000.0,0.0003171,30]
[337407817,1725648411198,-1000.0,0.0003171,30]
[337407818,1725648411257,-1000.0,0.0003171,30]
[337407820,1725648411314,-1000.0,0.0003171,30]
[337407822,1725648411369,-1000.0,0.0003171,30]
[337407824,1725648411428,-1000.0,0.0003171,30]
[337407826,1725648411481,-800.00247573,0.0003171,30]
[337407832,1725648411705,-1000.0,0.0003171,30]
[337407834,1725648411755,-1000.0,0.0003171,30]
[337407836,1725648411802,-1000.0,0.0003171,30]
[337407838,1725648411851,-1000.0,0.0003171,30]
[337407840,1725648411902,-387.676391,0.0003171,30]
[337407842,1725648411952,-160.0,0.0003171,30]
[337407844,1725648412005,-489.18318121,0.0003171,30]
[337407846,1725648412060,-365.60345498,0.0003171,30]
[337407848,1725648412120,-1536.1321106,0.0003171,30]
[337407850,1725648412177,-838.66720524,0.0003171,30]
[337407852,1725648412232,-1000.0,0.0003171,30]
[337407854,1725648412294,-1926.10172059,0.0003171,30]
[337407856,1725648412350,-707.71255837,0.0003171,30]
[337407857,1725648412405,-844.5827647,0.0003171,30]
[337407860,1725648412464,-654.74590822,0.0003171,30]
[337407862,1725648412524,-1055.17303247,0.0003171,30]
[337407864,1725648412587,-253.8738166,0.0003171,30]
[337407866,1725648412653,-946.2296579,0.0003171,30]
[337407867,1725648412719,-821.48364291,0.0003171,30]
[337407869,1725648412782,-829.3406963,0.0003171,30]
[337407871,1725648412838,-407.70351409,0.0003171,30]
[337407873,1725648412891,-893.31819083,0.0003171,30]
[337407875,1725648412943,-199.94287537,0.0003171,30]
[337407877,1725648412995,-922.87632479,0.0003171,30]
[337407879,1725648413048,-337.3084333,0.0003171,30]
[337407881,1725648413099,-86855.17764821,0.0003171,30]
[337407883,1725648413150,-200.0,0.0003171,30]
[337407885,1725648413201,-187.0,0.0003171,30]
[337407887,1725648413252,-194.23893401,0.0003171,30]
[337407889,1725648413308,-848.88859006,0.0003171,30]
[337407891,1725648413362,-195.50474352,0.0003171,30]
[337407893,1725648413412,-1994.41360155,0.0003171,30]
[337407895,1725648413467,-570.79856472,0.0003171,30]
[337407897,1725648413530,-657.79650823,0.0003171,30]
[337407899,1725648413589,-256.07279504,0.0003171,30]
[337407901,1725648413649,-215.47115822,0.0003171,30]
[337407903,1725648413708,-288.96154749,0.0003171,31]
[337407905,1725648413764,-1697.2113021,0.0003171,30]
[337407907,1725648413818,-1443.51749605,0.0003171,30]
[337407909,1725648413871,-1405.01170392,0.0003171,30]
[337407911,1725648413923,-1098.73946169,0.0003171,30]
[337407913,1725648413975,-1070.63650539,0.0003171,30]
[337407915,1725648414029,-289.86279316,0.0003171,30]
[337407917,1725648414081,-2108.71300048,0.0003171,30]
[337407919,1725648414127,-266.0,0.0003171,30]
[337407921,1725648414177,-737.13681539,0.0003171,30]
[337407923,1725648414226,-955.0,0.0003171,30]
[337407925,1725648414277,-14176.69862629,0.0003171,30]
[337407926,1725648414332,-645.0,0.0003171,30]
[337407927,1725648414380,-4703.11223423,0.0003171,30]
[337407928,1725648414432,-4778.0,0.0003171,30]
[337407930,1725648414499,-4778.0,0.0003171,30]
[337407932,1725648414561,-687.0,0.0003171,30]
[337407934,1725648414612,-866.76332485,0.0003171,30]
[337407936,1725648414666,-307.11610103,0.0003171,30]
[337407938,1725648414714,-176.44356769,0.0003171,30]
[337407939,1725648414763,-9632.06045833,0.0003171,31]
[337407940,1725648414812,-225.00462754,0.0003171,60]
[337407941,1725648414858,-2063.43792817,0.0003171,120]
[337407942,1725648414904,-1015.82638579,0.0003171,120]
[337407943,1725648414947,-255.6951137,0.0003171,120]
[337407944,1725648414992,-378.4057,0.0003171,30]
[337407945,1725648415037,-710.14840352,0.0003171,120]
[337407946,1725648415087,-407.3974326,0.0003171,120]
[337407947,1725648415130,-1000.0,0.0003171,30]
[337407948,1725648415177,-1000.0,0.0003171,30]
[337407949,1725648415221,-1000.0,0.0003171,30]
[337407950,1725648415265,-1000.0,0.0003171,30]
[337407951,1725648415307,-1000.0,0.0003171,30]
[337407952,1725648415349,-1000.0,0.0003171,30]
[337407953,1725648415393,-1000.0,0.0003171,30]
[337407954,1725648415437,-1000.0,0.0003171,30]
[337407955,1725648415486,-1000.0,0.0003171,30]
[337407956,1725648415530,-1000.0,0.0003171,30]
[337407957,1725648415574,-1000.0,0.0003171,30]
[337407958,1725648415618,-1000.0,0.0003171,30]
[337407959,1725648415664,-1000.0,0.0003171,30]
[337407960,1725648415711,-1000.0,0.0003171,30]
[337407961,1725648415760,-1000.0,0.0003171,30]
[337407962,1725648415807,-1000.0,0.0003171,30]
[337407963,1725648415853,-1000.0,0.0003171,30]
[337407964,1725648415896,-1000.0,0.0003171,30]
[337407965,1725648415940,-1000.0,0.0003171,30]
[337407966,1725648415982,-1000.0,0.0003171,30]
[337407967,1725648416027,-1000.0,0.0003171,30]
[337407968,1725648416069,-1000.0,0.0003171,30]
[337407969,1725648416113,-1000.0,0.0003171,30]
[337407970,1725648416156,-1000.0,0.0003171,30]
[337407971,1725648416200,-1000.0,0.0003171,30]
[337407972,1725648416242,-1000.0,0.0003171,30]
[337407973,1725648416287,-1000.0,0.0003171,30]
[337407974,1725648416334,-1000.0,0.0003171,30]
[337407975,1725648416380,-1000.0,0.0003171,30]
[337407976,1725648416423,-1000.0,0.0003171,30]
[337407977,1725648416468,-150.0,0.0003171,30]
[337407978,1725648416511,-150.0,0.0003171,30]
[337407979,1725648416559,-150.0,0.0003171,30]
[337407980,1725648416603,-150.0,0.0003171,30]
[337407981,1725648416645,-150.0,0.0003171,30]
[337407982,1725648416689,-150.0,0.0003171,30]
[337407983,1725648416732,-216.20303,0.0003171,30]
[337407984,1725648416778,-150.0,0.0003171,30]
[337407985,1725648416821,-150.0,0.0003171,30]
[337407986,1725648416866,-287.475279,0.0003171,30]
[337407987,1725648422876,268.36,0.00011979,2]
[337407988,1725648424477,250.0,0.00011979,2]
[337408468,1725648462647,155.97,0.00010959,2]
[337408513,1725648466470,193.0,0.0003171,30]
[337408515,1725648466933,193.0,0.0003171,30]
[337408517,1725648467411,193.0,0.0003171,30]
[337408519,1725648467730,200.0,0.0003171,30]
[337408521,1725648468272,187.0,0.0003171,30]
[337408524,1725648468800,324.0,0.0003171,30]
[337408567,1725648473456,6307.92109964,0.00011983,2]
[337408570,1725648478605,6307.92109962,0.00011996,2]
[337408571,1725648510259,2989.29,0.00011975,2]
[337408572,1725648519673,1000.0,0.0003171,30]
[337408573,1725648520182,1000.0,0.0003171,30]
[337408574,1725648520726,1000.0,0.0003171,30]
[337408575,1725648520998,1000.0,0.0003171,30]
[337408576,1725648521456,1000.0,0.0003171,30]
[337408577,1725648522137,1000.0,0.0003171,30]
[337408578,1725648522583,1000.0,0.0003171,30]
[337408579,1725648522988,1000.0,0.0003171,30]
[337408580,1725648523016,4345.02,0.00011976,2]
[337408581,1725648523433,1000.0,0.0003171,30]
[337408582,1725648523881,1000.0,0.0003171,30]
[337408583,1725648524314,1000.0,0.0003171,30]
[337408584,1725648524768,1000.0,0.0003171,30]
[337408585,1725648525200,1000.0,0.0003171,30]
[337408586,1725648525668,1000.0,0.0003171,30]
[337408587,1725648526130,1000.0,0.0003171,30]
[337408588,1725648526867,1000.0,0.0003171,30]
[337408589,1725648527244,1000.0,0.0003171,30]
[337408590,1725648527697,1000.0,0.0003171,30]
[337408591,1725648528110,1000.0,0.0003171,30]
[337408592,1725648528558,1000.0,0.0003171,30]
[337408593,1725648528911,1000.0,0.0003171,30]
[337408594,1725648529396,1000.0,0.0003171,30]
[337408595,1725648529844,1000.0,0.0003171,30]
[337408596,1725648530299,1000.0,0.0003171,30]
[337408597,1725648531765,1722.900771,0.0003171,30]
[337408600,1725648554594,1000.0,0.00011975,2]
[337408601,1725648588857,2102.64036654,0.00011982,2]
[337408602,1725648592944,-154.66,0.00012018,2]
[337408603,1725648592980,-200.85,0.00012082,2]
[337408604,1725648593011,-7591.79725674,0.00012083,2]
[337408605,1725648593053,-3277.18871567,0.00012083,2]
[337408606,1725648593092,-7947.30725674,0.00012083,2]
[337408607,1725648593132,-5083.70677085,0.00012083,2]
[337408608,1725648593174,-200.0,0.00012109,2]
[337408609,1725648593209,-150.0,0.00012139,2]
[337408610,1725648593241,-2513.60048589,0.00012139,2]
[337408611,1725648593279,-2305.29710126,0.00012139,2]
[337408612,1725648593312,-471.81,0.00012145,2]
[337408613,1725648593345,-150.0,0.00012164,2]
[337408614,1725648593377,-1852.42,0.00012178,2]
[337408615,1725648593410,-3167.78015548,0.00012178,2]
[337408616,1725648593447,-7947.30725674,0.00012178,2]
[337408617,1725648593485,-7947.30725674,0.00012178,2]
[337408618,1725648593531,-7947.30725674,0.00012178,2]
[337408619,1725648593571,-7506.8980743,0.00012178,2]
[337408620,1725648593606,-230.4,0.00012186,2]
[337408621,1725648593640,-210.00918244,0.00012186,2]
[337408622,1725648593682,-454.44081756,0.00012186,2]
[337408623,1725648593717,-5156.76,0.00012195,2]
[337408624,1725648593752,-2336.10643918,0.00012199,2]
[337408625,1725648593853,2102.64036654,0.00011983,2]
[337408626,1725648598855,2102.64036654,0.00011983,2]
[337408639,1725648631934,-67.28356082,0.00012199,2]
[337408640,1725648631943,-912.69,0.00012506,2]
[337408641,1725648631953,-409.46,0.00012514,2]
[337408642,1725648631964,-499.99,0.00012851,2]
[337408643,1725648631974,-674.27285751,0.000129,2]
[337408644,1725648631984,-315.08270782,0.000129,2]
[337408645,1725648631993,-300.0,0.00012999,2]
[337408646,1725648632003,-281.44858275,0.00013,2]
[337408647,1725648632014,-404.4999995,0.00013,2]
[337408648,1725648632025,-18875.8991224,0.00013,2]
[337408649,1725648632037,-505.95034743,0.00013,2]
[337408650,1725648632048,-355.41834579,0.00013,2]
[337408651,1725648632060,-7552.79375226,0.00013,2]
[337408652,1725648632071,-58572.76094215,0.00013,2]
[337408653,1725648632083,-919.70999,0.00013,2]
[337408654,1725648636276,-377.431,0.00013,2]
[337408655,1725648636287,-392.16304759,0.00013,2]
[337408656,1725648636299,-6200.37173994,0.00013,2]
[337408657,1725648636336,-1160.00238867,0.00013,2]
[337408658,1725648636347,-3282.66146261,0.00013,2]
[337408659,1725648636358,-10788.88930125,0.00013,2]
[337408660,1725648636369,-347.96815075,0.00013,2]
[337408661,1725648636380,-188873.02981874,0.00013,2]
[337408666,1725648636910,-337.54119778,0.00013,2]
[337408667,1725648636923,-250.0,0.00013,2]
[337408670,1725648637948,-436.00643716,0.00013,2]
[337408671,1725648637959,-874.06263553,0.00013,2]
[337408673,1725648638002,-30973.67906337,0.00013,2]
[337408674,1725648638013,-360.23,0.00013,2]
[337408675,1725648638024,-759.24899239,0.00013,2]
[337408676,1725648638034,-2820.66603228,0.00013,2]
[337408677,1725648638045,-33859.69401677,0.00013,2]
[337408678,1725648638055,-800.0,0.00013,2]
[337408679,1725648638064,-165.25,0.00013,2]
[337408680,1725648638074,-250.0,0.00013046,2]
[337408681,1725648638084,-250.0,0.00013068,2]
[337408682,1725648638093,-199.02,0.00013098,2]
[337408683,1725648638102,-500.0,0.00013105,2]
[337408684,1725648638112,-674.27285748,0.00013122,2]
[337408685,1725648638121,-315.0827078,0.00013186,2]
[337408686,1725648638130,-9639.49380926,0.00013198,2]
[337408687,1725648638142,-3513.2,0.00013198,2]
[337408688,1725648638154,-2255.14308466,0.00013198,2]
[337408689,1725648638163,-674.27285748,0.00013344,2]
[337408690,1725648638173,-315.0827078,0.00013471,2]
[337408691,1725648638182,-1000.0,0.00013472,2]
[337408692,1725648638192,-150.0,0.00013488,2]
[337408693,1725648638202,-674.27285748,0.00013567,2]
[337408694,1725648638211,-200.85,0.00013592,2]
[337408695,1725648638224,-161.81,0.00013699,2]
[337408696,1725648638233,-200.0,0.00013699,2]
[337408697,1725648638243,-2751.0,0.00013699,2]
[337408698,1725648638252,-164.83,0.00013699,2]
[337408699,1725648638261,-288.07,0.000137,2]
[337408700,1725648638271,-910.15438031,0.00013747,2]
[337408701,1725648638281,-315.0827078,0.00013757,2]
[337408702,1725648638291,-674.27285748,0.00013789,2]
[337408703,1725648638300,-167.37,0.0001383,2]
[337408704,1725648638309,-152.748,0.0001383,2]
[337408705,1725648638318,-3109.79574314,0.000139,2]
[337408706,1725648638327,-1000.0,0.00014,3]
[337408707,1725648638336,-1000.0,0.00014,3]
[337408708,1725648638346,-674.27285748,0.00014011,2]
[337408710,1725648638355,-315.0827078,0.00014043,2]
[337408711,1725648638364,-2129.7889,0.0001408,2]
[337408713,1725648638374,-2129.78891,0.0001409,2]
[337408715,1725648638383,-2129.78891,0.0001413,2]
[337408717,1725648638392,-551.2457363,0.0001417,2]
[337408719,1725648638403,-1559.04212574,0.0001417,2]
[337408721,1725648638415,-19.50104796,0.0001417,2]
[337408723,1725648638424,-2129.78891,0.0001421,2]
[337408725,1725648638433,-674.27285748,0.00014233,2]
[337408727,1725648638442,-1480.0327622,0.0001424,2]
[337408730,1725648638459,-325.88,0.0001424,2]
[337408755,1725648640232,-323.8761478,0.0001424,2]
[337408756,1725648640241,-420.0,0.00014256,2]
[337408757,1725648640251,-315.0827078,0.00014329,2]
[337408758,1725648640260,-13.70394445,0.00014329,2]
[337408759,1725648640307,-376.29720055,0.00014329,2]
[337408760,1725648640317,-1260.0,0.00014432,2]
[337408761,1725648640327,-447.0,0.00014432,2]
[337408762,1725648640336,-624.0,0.00014432,2]
[337408763,1725648640346,-1546.0,0.00014432,2]
[337408764,1725648640355,-931.0,0.00014432,2]
[337408765,1725648640365,-557.0,0.00014432,2]
[337408766,1725648640375,-811.0,0.00014432,2]
[337408767,1725648640384,-150.387,0.00014432,2]
[337408768,1725648640394,-552.0,0.00014432,2]
[337408769,1725648640403,-1989.526,0.00014432,2]
[337408770,1725648640413,-805.0,0.00014432,2]
[337408771,1725648640422,-1134.0,0.00014432,2]
[337408772,1725648640432,-3341.0,0.00014432,2]
[337408773,1725648640441,-150.0,0.00014432,2]
[337408774,1725648640451,-248.0,0.00014432,2]
[337408775,1725648640460,-188.121,0.00014432,2]
[337408776,1725648640471,-150.0,0.00014432,2]
[337408777,1725648640480,-4694.64,0.00014432,2]
[337408778,1725648640637,-473.5,0.00014432,2]
[337408779,1725648640647,-150.09,0.00014432,2]
[337408780,1725648640656,-8502.951,0.00014432,2]
[337408781,1725648640666,-150.0,0.00014432,2]
[337408783,1725648640675,-674.27285748,0.00014456,2]
[337408784,1725648640684,-1380.396649,0.00014489,2]
[337408785,1725648640693,-1000.0,0.000145,4]
[337408786,1725648640702,-152.748,0.00014556,2]
[337408787,1725648640712,-161.81,0.00014612,2]
[337408788,1725648640723,-315.0827078,0.00014614,2]
[337408789,1725648640732,-674.27285748,0.00014678,2]
[337408791,1725648640742,-409.46,0.00014778,2]
[337408792,1725648640752,-1663.97523692,0.00014784,3]
[337408793,1725648640761,-19967.702843,0.0001479,3]
[337408794,1725648640770,-150.89,0.0001479,2]
[337408795,1725648640780,-500.0,0.00014794,2]
[337408796,1725648640789,-414.618,0.00014794,2]
[337408797,1725648640799,-505.74,0.00014794,2]
[337408798,1725648640811,-500.0,0.00014794,2]
[337408799,1725648640820,-500.0,0.00014794,2]
[337408800,1725648640830,-312.67623702,0.00014794,2]
[337408801,1725648640840,-487.92378114,0.00014794,2]
[337408802,1725648640850,-284716.71235194,0.000148,2]
[337408803,1725648640859,-582.16202813,0.00014855,2]
[337408804,1725648640869,-1663.97523692,0.0001489,3]
[337408805,1725648640879,-169.81984031,0.00014899,2]
[337408806,1725648640888,-169.81984029,0.00014899,2]
[337408807,1725648640897,-169.81984029,0.000149,2]
[337408808,1725648640907,-163.94885823,0.000149,2]
[337408809,1725648640916,-179.73329302,0.000149,2]
[337408810,1725648640926,-169.81984029,0.000149,2]
[337408811,1725648640935,-335.0061,0.000149,2]
[337408812,1725648640945,-674.27285748,0.000149,2]
[337408813,1725648640954,-1467.96313218,0.000149,2]
[337408814,1725648640964,-2864.09272183,0.000149,2]
[337408815,1725648640976,-315.0827078,0.000149,2]
[337408816,1725648640985,-1657.0,0.000149,2]
[337408817,1725648640996,-211.88152153,0.000149,2]
[337408818,1725648641005,-1000.0,0.00014969,2]
[337408819,1725648641014,-500.0,0.00014973,2]
[337408820,1725648641023,-501.94861369,0.00014973,2]
[337408821,1725648641033,-500.0,0.00014973,2]
[337408822,1725648641043,-23295.6533169,0.0001499,3]
[337408823,1725648641053,-653.0,0.00014995,2]
[337408824,1725648641063,-246.6042394,0.00014999,2]
[337408825,1725648641073,-1000.0,0.00014999,2]
[337408826,1725648641082,-500.0,0.00014999,2]
[337408827,1725648641092,-500.0,0.00014999,2]
[337408828,1725648641101,-296.1038,0.00014999,2]
[337408829,1725648641111,-2629555.51469231,0.00015,2]
[337408830,1725648641121,-559695.94502422,0.00015,2]
[337408831,1725648641130,-137310.90067057,0.00015,2]
[337408832,1725648641140,-74888.5987785,0.00015,2]
[337408833,1725648641152,-2856.3754655,0.00015,2]
[337408834,1725648641163,-336.62849999,0.00015,2]
[337408835,1725648641174,-53915.19339245,0.00015,2]
[337408836,1725648641185,-4566.05272,0.00015,2]
[337408845,1725648643381,-572.63567227,0.00014432,2]
[337408846,1725648643392,-505.36432773,0.00014432,2]
[337408847,1725648643402,-26285.63567227,0.00015,2]
[337408848,1725648643928,-2383536.4557777,0.00015,2]
[337408849,1725648643937,-234486.10367191,0.00015,2]
[337408850,1725648643946,-2633260.39719445,0.00015,2]
[337408851,1725648643956,-7472973.13258096,0.00015,2]
[337408852,1725648643965,-3232325.11868648,0.00015,2]
[337408853,1725648643976,-3877397.49495067,0.00015,2]
[337408854,1725648643985,-869296.8995939,0.00015,2]
[337408855,1725648643995,-5327360.90298255,0.00015,2]
[337408856,1725648644142,-28071.76230963,0.00015,2]
[337408859,1725648646089,-1343.472188,0.00015,2]
[337408860,1725648646101,-258.10501426,0.00015,2]
[337408861,1725648646112,-26822.95,0.00015,2]
[337408862,1725648646241,-268.0,0.00015,2]
[337408863,1725648646292,-3315.02840758,0.00015,2]
[337408878,1725648675749,150.0,0.0003171,30]
[337408879,1725648676208,150.0,0.0003171,30]
[337408880,1725648676690,287.475279,0.0003171,30]
[337408881,1725648746685,160.0,0.0003171,30]
[337408890,1725648864564,955.0,0.00031708,30]
[337408891,1725648865164,4778.0,0.00031708,30]
[337408894,1725648973930,150.0,0.00031708,30]
[337408895,1725648974344,150.0,0.00031708,30]
[337408896,1725648974774,287.475279,0.00031708,30]
[337408897,1725649071277,193.0,0.00031708,30]
[337408898,1725649071648,193.0,0.00031708,30]
[337408899,1725649072144,193.0,0.00031708,30]
[337408900,1725649112536,1000.0,0.00031708,30]
[337408901,1725649113078,1000.0,0.00031708,30]
[337408902,1725649113495,1000.0,0.00031708,30]
[337408903,1725649113884,1000.0,0.00031708,30]
[337408904,1725649114257,1000.0,0.00031708,30]
[337408905,1725649114693,1000.0,0.00031708,30]
[337408906,1725649115064,1000.0,0.00031708,30]
[337408907,1725649115432,1000.0,0.00031708,30]
[337408908,1725649115948,1000.0,0.00031708,30]
[337408909,1725649116425,1000.0,0.00031708,30]
[337408910,1725649117294,1000.0,0.00031708,30]
[337408911,1725649117977,1871.501285,0.00031708,30]
[337408912,1725649273409,150.0,0.00031465,30]
[337408913,1725649273900,150.0,0.00031465,30]
[337408914,1725649274283,287.475279,0.00031465,30]
[337408915,1725649435044,411.92,0.0001163,2]
[337408916,1725649463917,955.0,0.00031465,30]
[337408917,1725649464356,1520.0,0.00031465,30]
[337408918,1725649518414,750.0,0.00011,2]
[337408919,1725649571781,150.0,0.00031465,30]
[337408920,1725649572242,150.0,0.00031465,30]
[337408921,1725649572576,287.475279,0.00031465,30]
[337408922,1725649645662,160.0,0.00031465,30]
[337408923,1725649662863,200.0,0.00025,120]
[337408924,1725649664980,193.0,0.00031465,30]
[337408925,1725649665428,195.0,0.00031465,30]
[337408926,1725649703926,400.0,0.00027,120]
[337408927,1725649712654,150.0,0.00031465,30]
[337408928,1725649813677,200.0,0.00027,120]
[337408942,1725649832120,-553.3984004,0.00012195,2]
[337408943,1725649832129,-500.0,0.000123,2]
[337408944,1725649832140,-381.83386269,0.00013184,2]
[337408945,1725649832153,-432.92,0.00013184,2]
[337408946,1725649832164,-3164.75000067,0.00013184,2]
[337408947,1725649832176,-703.92048664,0.00013184,2]
[337408948,1725649832185,-2428.41889616,0.00013252,2]
[337408949,1725649832196,-784.98522457,0.00013252,2]
[337408950,1725649832208,-20686.59587927,0.00013252,2]
[337408951,1725649832217,-250.0,0.00013262,2]
[337408952,1725649832226,-500.0,0.00013286,2]
[337408953,1725649832236,-165.25,0.00013297,2]
[337408954,1725649832245,-583.24,0.00013343,2]
[337408955,1725649832255,-173.8,0.00013347,2]
[337408956,1725649832264,-150.0,0.00013353,2]
[337408957,1725649832277,-171.08,0.00013354,2]
[337408958,1725649832287,-13852.5,0.00013354,2]
[337408959,1725649832296,-499.99,0.00013354,2]
[337408960,1725649832305,-250.0,0.00013404,2]
[337408961,1725649832315,-454.97,0.0001341,2]
[337408962,1725649832323,-150.0,0.00013488,2]
[337408963,1725649832333,-250.0,0.0001349,2]
[337408964,1725649832342,-2000.0,0.00013513,2]
[337408965,1725649832351,-1000.0,0.00013645,2]
[337408966,1725649832362,-200.0,0.00013699,2]
[337408967,1725649832372,-166.43,0.00013699,2]
[337408968,1725649832382,-2751.0,0.00013699,2]
[337408969,1725649832391,-165.08,0.00013699,2]
[337408970,1725649832400,-262.34,0.00013749,30]
[337408971,1725649832410,-528.84,0.00013801,2]
[337408972,1725649832420,-788.61,0.00013801,2]
[337408973,1725649832429,-299.99,0.00013801,2]
[337408975,1725649832438,-580.2,0.00013801,2]
[337408976,1725649832448,-1884.27,0.00013801,2]
[337408978,1725649832457,-2701.73,0.00013893,2]
[337408979,1725649832467,-411.92,0.00013893,2]
[337408980,1725649832476,-400.0,0.000139,5]
[337408981,1725649832486,-161.81,0.00013907,2]
[337408982,1725649832496,-180.34,0.00013926,2]
[337408983,1725649832505,-327.13,0.00014,2]
[337408984,1725649832514,-800.0,0.00014,5]
[337408985,1725649832524,-1200.0,0.000141,5]
[337408986,1725649832533,-1600.0,0.000142,5]
[337408987,1725649832543,-2100.0,0.000143,5]
[337408988,1725649832551,-400.0,0.000144,5]
[337408989,1725649832562,-255.0,0.00014462,2]
[337408990,1725649832572,-400.0,0.000145,5]
[337408991,1725649832581,-5833.82,0.00014504,2]
[337408992,1725649832590,-261.21,0.00014504,2]
[337408993,1725649832600,-4922.292,0.00014533,2]
[337408994,1725649832611,-1058.534,0.00014533,2]
[337408995,1725649832620,-150.0,0.00014533,2]
[337408996,1725649832630,-1176.266,0.00014533,2]
[337408997,1725649832639,-761.207,0.00014533,2]
[337408998,1725649832649,-400.0,0.000146,5]
[337408999,1725649832659,-447.0,0.00014632,2]
[337409000,1725649832668,-1546.0,0.00014632,2]
[337409001,1725649832678,-624.0,0.00014632,2]
[337409002,1725649832687,-1260.0,0.00014632,2]
[337409003,1725649832696,-811.0,0.00014632,2]
[337409004,1725649832706,-931.0,0.00014632,2]
[337409005,1725649832715,-557.0,0.00014632,2]
[337409006,1725649832725,-150.0,0.00014632,2]
[337409007,1725649832734,-552.0,0.00014632,2]
[337409008,1725649832744,-1899.0,0.00014632,2]
[337409009,1725649832753,-248.0,0.00014632,2]
[337409010,1725649832762,-1134.0,0.00014632,2]
[337409011,1725649832774,-805.0,0.00014632,2]
[337409012,1725649832783,-3341.0,0.00014632,2]
[337409013,1725649832792,-421.24760668,0.00014642,2]
[337409014,1725649832802,-4125.91904265,0.000147,2]
[337409015,1725649832811,-400.0,0.000147,5]
[337409016,1725649832821,-4125.91904261,0.00014722,2]
[337409017,1725649832830,-424.813,0.0001474,2]
[337409018,1725649832840,-4125.91904261,0.00014744,2]
[337409019,1725649832849,-75.3784346,0.00014767,2]
[337409020,1725649832864,-500.0,0.00014767,2]
[337409021,1725649832884,-3550.54060801,0.00014767,2]
[337409022,1725649832894,-4125.91904261,0.00014789,2]
[337409023,1725649832903,-360.42842612,0.00014794,2]
[337409024,1725649832915,-69014.9196,0.000148,2]
[337409025,1725649832926,-1000.0,0.000148,2]
[337409026,1725649832936,-2500.0,0.000148,2]
[337409027,1725649832946,-719.0,0.000148,5]
[337409028,1725649832956,-4125.91904261,0.00014811,2]
[337409029,1725649832966,-4125.91904261,0.00014833,2]
[337409030,1725649832975,-982.13833,0.0001485,2]
[337409031,1725649832985,-4125.91904261,0.00014856,2]
[337409032,1725649832995,-4125.91904261,0.00014878,2]
[337409033,1725649833004,-258.12952779,0.00014899,2]
[337409034,1725649833014,-223.9265,0.000149,2]
[337409035,1725649833024,-6544.6227,0.000149,2]
[337409036,1725649833033,-245000.0,0.000149,2]
[337409037,1725649833043,-405.6249,0.000149,2]
[337409038,1725649833054,-1064.4194,0.000149,2]
[337409039,1725649833065,-2303.4734,0.000149,2]
[337409040,1725649833075,-1101.7896,0.000149,2]
[337409041,1725649833085,-335.0061,0.000149,2]
[337409042,1725649833095,-4125.91904261,0.000149,2]
[337409043,1725649833104,-150.0,0.00014986,2]
[337409044,1725649833118,-150.79,0.0001499,2]
[337409045,1725649833128,-150.79,0.0001499,2]
[337409046,1725649833303,-150.79,0.0001499,2]
[337409047,1725649833313,-688.0,0.00015,2]
[337409048,1725649833322,-83396.38008642,0.00015,2]
[337409049,1725649833353,200.0,0.00027,120]
[337409050,1725649833369,-263.83675025,0.00015,2]
[337409051,1725649833380,-863.503638,0.00015,2]